bitfinex-derivatives/quotes_BTCF0:USTF0_20251111
["timestamp","ask_amount","ask_price","bid_price","bid_amount"]
[1762876089059,0.27317159,103320.0,103310.0,0.14175636]
[1762876089260,0.24201159,103320.0,103310.0,0.14175636]
[1762876089470,0.50201159,103320.0,103310.0,0.14175636]
[1762876089666,0.50201159,103320.0,103310.0,0.09895636]
[1762876089667,0.51317159,103320.0,103310.0,0.09895636]
[1762876089870,0.70881515,103320.0,103310.0,0.00214526]
[1762876090963,1.09633515,103320.0,103310.0,0.00214526]
[1762876091965,1.19313685,103320.0,103310.0,0.09895636]
[1762876092169,1.19271527,103320.0,103310.0,0.00214526]
[1762876092663,0.05518,103300.0,103290.0,0.0968288]
[1762876092863,0.04417,103290.0,103280.0,0.1396392]
[1762876093171,0.2418008,103290.0,103280.0,0.1396392]
[1762876093369,0.3618008,103290.0,103280.0,0.1396392]
[1762876093566,0.2418008,103290.0,103280.0,0.1522992]
[1762876093764,0.2197908,103290.0,103280.0,0.1522992]
[1762876094066,0.1976308,103290.0,103280.0,0.1522992]
[1762876094470,0.2197908,103290.0,103280.0,0.1522992]
[1762876094670,0.3386306,103290.0,103280.0,0.1522992]
[1762876094872,0.2418008,103290.0,103280.0,0.1522992]
[1762876095469,0.2197908,103290.0,103280.0,0.1522992]
[1762876095762,0.2217908,103290.0,103280.0,0.1522992]
[1762876096072,0.00419803,103290.0,103280.0,0.3943392]
[1762876096259,0.00719803,103290.0,103280.0,0.3943392]
[1762876096668,0.005,103290.0,103280.0,0.1522992]
[1762876096862,0.005,103290.0,103280.0,0.58977197]
[1762876097058,0.31438917,103330.0,103320.0,0.02116]
[1762876097263,0.13362483,103350.0,103340.0,0.096783]
[1762876097264,0.3732276,103350.0,103340.0,0.096783]
[1762876097563,0.71396027,103350.0,103340.0,0.09898103]
[1762876097964,0.71396027,103350.0,103340.0,0.14178103]
[1762876098167,0.61718117,103350.0,103340.0,0.15444103]
[1762876098357,0.0797384,103350.0,103340.0,0.15444103]
[1762876098562,0.0797384,103350.0,103340.0,0.39636103]
[1762876098764,0.02073267,103350.0,103340.0,0.39636103]
[1762876098957,0.00014526,103360.0,103350.0,0.1395736]
[1762876099162,0.02014526,103360.0,103350.0,0.77089163]
[1762876099377,0.23960277,103380.0,103370.0,0.1395549]
[1762876099670,0.04490267,103380.0,103370.0,0.14175293]
[1762876099971,0.26033544,103380.0,103370.0,0.14175293]
[1762876100174,0.50033544,103380.0,103370.0,0.04499803]
[1762876100373,0.50033544,103380.0,103370.0,0.14175293]
[1762876101067,0.24033544,103380.0,103370.0,0.53007293]
[1762876101268,0.26033544,103380.0,103370.0,0.53007293]
[1762876101473,0.23832544,103380.0,103370.0,0.53007293]
[1762876101767,0.57458544,103380.0,103370.0,0.00319803]
[1762876102173,0.04612,103370.0,103360.0,0.00014526]
[1762876102472,0.1429079,103340.0,103330.0,0.04477]
[1762876102665,0.66907334,103340.0,103330.0,0.04696803]
[1762876103369,0.02302,103320.0,103310.0,0.1415754]
[1762876103569,0.48918544,103320.0,103310.0,0.14377343]
[1762876104273,0.51228544,103320.0,103310.0,0.14377343]
[1762876105077,0.24228544,103320.0,103310.0,0.14377343]
[1762876105268,0.26228544,103320.0,103310.0,0.14377343]
[1762876105467,0.53228544,103320.0,103310.0,0.14477343]
[1762876106079,0.53228544,103320.0,103310.0,0.14377343]
[1762876106275,0.20116544,103320.0,103310.0,0.14577343]
[1762876106480,0.005,103320.0,103310.0,0.14577343]
[1762876106679,0.20043277,103320.0,103310.0,0.38773343]
[1762876106874,0.005,103320.0,103310.0,0.38773343]
[1762876107081,0.19557803,103330.0,103320.0,0.1553717]
[1762876107382,0.669223,103330.0,103320.0,0.54472973]
[1762876107679,0.3624307,103330.0,103320.0,0.54472973]
[1762876108082,0.5324307,103330.0,103320.0,0.54472973]
[1762876108275,0.5824307,103330.0,103320.0,0.54472973]
[1762876108678,0.5824307,103330.0,103320.0,0.15756973]
[1762876108985,0.5824307,103330.0,103320.0,0.00219803]
[1762876109279,0.5824307,103330.0,103320.0,0.09899973]
[1762876109480,0.5844307,103330.0,103320.0,0.10399973]
[1762876109680,0.681223,103330.0,103320.0,0.10399973]
[1762876109880,0.5844307,103330.0,103320.0,0.10399973]
[1762876110280,0.5844307,103330.0,103320.0,0.16256973]
[1762876110479,0.5744307,103330.0,103320.0,0.10399973]
[1762876111082,0.5744307,103330.0,103320.0,0.14876973]
[1762876111381,0.00287793,103330.0,103320.0,0.54924973]
[1762876111783,0.00214526,103330.0,103320.0,0.54924973]
[1762876111975,0.00287793,103330.0,103320.0,0.54924973]
[1762876112173,0.1983107,103330.0,103320.0,0.54924973]
[1762876112576,0.5344307,103330.0,103320.0,0.00719803]
[1762876113281,0.72986347,103330.0,103320.0,0.00719803]
[1762876113579,0.5344307,103330.0,103320.0,0.00719803]
[1762876113779,0.04612,103310.0,103300.0,0.00014526]
[1762876114084,0.04612,103310.0,103300.0,0.00234329]
[1762876114085,0.62909654,103310.0,103300.0,0.00234329]
[1762876115085,0.62909654,103310.0,103300.0,0.09916379]
[1762876115280,0.53228544,103310.0,103300.0,0.09916379]
[1762876115476,0.53628544,103310.0,103300.0,0.09916379]
[1762876116180,0.53628544,103310.0,103300.0,0.14493379]
[1762876116181,0.54228544,103310.0,103300.0,0.14493379]
[1762876116383,0.54228544,103310.0,103300.0,0.15873379]
[1762876116580,0.54228544,103310.0,103300.0,0.14493379]
[1762876116784,0.63909654,103310.0,103300.0,0.00334329]
[1762876117086,0.63609654,103310.0,103300.0,0.00334329]
[1762876117282,0.63609654,103310.0,103300.0,0.00234329]
[1762876117477,0.63309654,103310.0,103300.0,0.00234329]
[1762876118780,0.63209654,103310.0,103300.0,0.09916379]
[1762876118989,0.63309654,103310.0,103300.0,0.00234329]
[1762876119183,0.63309654,103310.0,103290.0,0.0968247]
[1762876119184,0.04612,103290.0,103280.0,0.0968357]
[1762876119377,0.52228544,103290.0,103280.0,0.09903373]
[1762876119577,0.52228544,103290.0,103280.0,0.12183373]
[1762876119783,0.52228544,103290.0,103280.0,0.14380373]
[1762876120294,0.52828544,103290.0,103280.0,0.14380373]
[1762876120593,0.53228544,103290.0,103280.0,0.14380373]
[1762876120984,0.62356819,103290.0,103280.0,0.14380373]
[1762876122988,0.62356819,103290.0,103280.0,0.09903373]
[1762876123191,1.00944819,103290.0,103280.0,0.00219803]
[1762876124292,1.00944819,103290.0,103280.0,0.09903723]
[1762876124584,1.10627809,103290.0,103280.0,0.14380723]
[1762876124789,0.62356819,103290.0,103280.0,0.14380723]
[1762876125290,0.39356819,103290.0,103280.0,0.15760723]
[1762876125490,0.67356819,103290.0,103280.0,0.15760723]
[1762876125792,0.77039809,103290.0,103280.0,0.14380723]
[1762876125982,0.77039809,103290.0,103280.0,0.00219803]
[1762876127298,0.77039809,103290.0,103280.0,0.09903723]
[1762876127796,0.77039809,103290.0,103280.0,0.00219803]
[1762876128096,0.77039809,103290.0,103280.0,0.09903723]
[1762876128282,0.67356819,103290.0,103280.0,0.12183723]
[1762876128486,0.67356819,103290.0,103280.0,0.15760723]
[1762876129599,0.05685267,103290.0,103280.0,0.15760723]
[1762876129794,0.01073267,103290.0,103280.0,0.15760723]
[1762876129994,0.37573267,103290.0,103280.0,0.15760723]
[1762876130194,0.66244819,103290.0,103280.0,0.15760723]
[1762876131401,0.47244819,103290.0,103280.0,0.15760723]
[1762876131603,0.65244819,103290.0,103280.0,0.12183723]
[1762876132003,0.65244819,103290.0,103280.0,0.14367723]
[1762876132404,0.65244819,103290.0,103280.0,0.15632723]
[1762876132405,0.34244819,103290.0,103280.0,0.15632723]
[1762876133503,0.19573267,103290.0,103280.0,0.15632723]
[1762876133690,0.37573267,103290.0,103280.0,0.15632723]
[1762876135602,0.05829,103320.0,103310.0,0.01168]
[1762876135902,0.05829,103320.0,103310.0,0.49524913]
[1762876136208,0.07829,103320.0,103310.0,0.49672913]
[1762876136608,0.07829,103320.0,103310.0,0.11068913]
[1762876136809,0.07829,103320.0,103310.0,0.49696913]
[1762876137207,0.07829,103320.0,103310.0,0.11068913]
[1762876137405,0.07829,103320.0,103310.0,0.49696913]
[1762876137603,0.05829,103320.0,103310.0,0.49696913]
[1762876137808,0.05829,103320.0,103310.0,0.5066551]
[1762876138009,0.04598526,103330.0,103320.0,0.1413518]
[1762876138313,0.06598526,103330.0,103320.0,0.14354983]
[1762876139407,0.06698526,103330.0,103320.0,0.14454983]
[1762876140309,0.36698526,103330.0,103320.0,0.14454983]
[1762876140611,0.06698526,103330.0,103320.0,0.14454983]
[1762876140807,0.76049318,103330.0,103320.0,0.09999983]
[1762876141009,0.04584,103310.0,103300.0,0.09695966]
[1762876141305,0.04584,103310.0,103300.0,0.09915769]
[1762876141306,0.64255552,103310.0,103300.0,0.09915769]
[1762876141609,0.05938,103320.0,103310.0,0.1413611]
[1762876141807,0.67609552,103320.0,103310.0,0.14355913]
[1762876141999,0.67609552,103320.0,103310.0,0.09900913]
[1762876142204,0.05938,103320.0,103310.0,0.14355913]
[1762876142400,0.06584,103320.0,103310.0,0.14355913]
[1762876142609,0.04584,103320.0,103310.0,0.14355913]
[1762876143116,0.36338,103320.0,103310.0,0.14455913]
[1762876143312,0.06338,103320.0,103310.0,0.14455913]
[1762876143513,0.04984,103320.0,103310.0,0.14455913]
[1762876144103,0.004,103320.0,103310.0,0.43127465]
[1762876144305,0.00014526,103330.0,103320.0,0.1542018]
[1762876144617,0.00014526,103330.0,103320.0,0.54295983]
[1762876145517,0.02330526,103330.0,103320.0,0.54595983]
[1762876145918,0.00014526,103330.0,103320.0,0.54595983]
[1762876146117,0.00314526,103330.0,103320.0,0.59500143]
[1762876146417,0.00814526,103330.0,103320.0,0.59600143]
[1762876147312,0.00814526,103330.0,103320.0,0.54395983]
[1762876149418,0.00814526,103330.0,103320.0,0.78591983]
[1762876149718,0.00814526,103330.0,103320.0,0.54395983]
[1762876150328,0.00814526,103330.0,103320.0,0.78591983]
[1762876150514,0.16398526,103330.0,103320.0,0.15739983]
[1762876150713,0.35398526,103330.0,103320.0,0.14454983]
[1762876151020,0.05398526,103330.0,103320.0,0.53030983]
[1762876151417,0.37398526,103330.0,103320.0,0.53030983]
[1762876151616,0.05398526,103330.0,103320.0,0.53030983]
[1762876151918,0.38398526,103330.0,103320.0,0.53030983]
[1762876153024,0.00814526,103330.0,103320.0,0.54315983]
[1762876153226,0.05398526,103330.0,103320.0,0.54287983]
[1762876153421,0.34398526,103330.0,103320.0,0.15739983]
[1762876153718,0.34398526,103330.0,103320.0,0.53002983]
[1762876154116,0.44077766,103330.0,103320.0,0.53002983]
[1762876154322,0.72749318,103330.0,103320.0,0.09999983]
[1762876154818,0.72749318,103330.0,103320.0,0.00319803]
[1762876155014,0.72749318,103330.0,103320.0,0.001]
[1762876155223,0.1426511,103310.0,103300.0,0.09695996]
[1762876155524,0.71449491,103310.0,103300.0,0.09915799]
[1762876155722,0.04584,103310.0,103300.0,0.14370799]
[1762876155926,0.32584,103310.0,103300.0,0.14370799]
[1762876156124,0.04584,103310.0,103300.0,0.14370799]
[1762876156320,0.17584,103310.0,103300.0,0.14370799]
[1762876156527,0.05938,103320.0,103310.0,0.1413611]
[1762876156720,0.33938,103320.0,103310.0,0.14355913]
[1762876157328,0.32584,103320.0,103310.0,0.52903913]
[1762876157518,0.02316,103320.0,103310.0,0.52903913]
[1762876158124,0.04598526,103330.0,103320.0,0.1413518]
[1762876158427,0.32598526,103330.0,103320.0,0.14354983]
[1762876158825,0.32598526,103330.0,103320.0,0.15639983]
[1762876159426,0.08598526,103330.0,103320.0,0.15639983]
[1762876159629,0.08898526,103330.0,103320.0,0.15639983]
[1762876160325,0.00314526,103330.0,103320.0,0.15639983]
[1762876160627,0.00714526,103330.0,103320.0,0.15739983]
[1762876161022,0.00714526,103330.0,103320.0,0.20944143]
[1762876161422,1e-07,103330.0,103320.0,0.73811695]
[1762876161622,0.04425,103360.0,103350.0,0.1427637]
[1762876161825,0.28709,103360.0,103350.0,0.14496173]
[1762876162727,0.27425,103360.0,103350.0,0.14496173]
[1762876163133,0.29009,103360.0,103350.0,0.14496173]
[1762876163818,0.28709,103360.0,103350.0,0.53012173]
[1762876164017,0.28709,103360.0,103350.0,0.53212173]
[1762876164429,0.28809,103360.0,103350.0,0.53612173]
[1762876164623,0.29109,103360.0,103350.0,0.53412173]
[1762876165018,0.29109,103360.0,103350.0,0.53012173]
[1762876165218,1e-07,103360.0,103350.0,0.53012173]
[1762876165419,1e-07,103360.0,103350.0,0.5821559]
[1762876165825,0.0232501,103360.0,103350.0,0.5818359]
[1762876166017,0.0442501,103360.0,103350.0,0.5818359]
[1762876166221,1e-07,103360.0,103350.0,0.5358459]
[1762876166432,1e-07,103360.0,103350.0,0.1510059]
[1762876166631,1e-07,103360.0,103350.0,0.5358059]
[1762876167034,0.0010001,103360.0,103350.0,0.5817959]
[1762876167327,1e-07,103360.0,103350.0,1.11039142]
[1762876167530,0.00014526,103370.0,103360.0,0.1557743]
[1762876167531,6e-08,103370.0,103360.0,0.1557743]
[1762876167835,0.33119764,103390.0,103380.0,0.1427355]
[1762876168028,0.67119764,103390.0,103380.0,0.52953353]
[1762876168223,0.04448212,103390.0,103380.0,0.52953353]
[1762876168430,0.37448212,103390.0,103380.0,0.52953353]
[1762876169326,0.19448212,103390.0,103380.0,0.54255353]
[1762876169732,0.06448212,103390.0,103380.0,0.54255353]
[1762876169937,0.04448212,103390.0,103380.0,0.54255353]
[1762876170524,0.04548212,103390.0,103380.0,0.54855353]
[1762876170926,0.00223212,103390.0,103380.0,0.55455353]
[1762876172426,0.00223212,103390.0,103380.0,0.56433069]
[1762876172623,0.35648212,103390.0,103380.0,0.15693353]
[1762876173037,0.35648212,103390.0,103380.0,0.54093353]
[1762876173534,0.04648212,103390.0,103380.0,0.55395353]
[1762876173731,0.06648212,103390.0,103380.0,0.55395353]
[1762876173932,0.02548212,103390.0,103380.0,0.55395353]
[1762876174133,0.00223212,103390.0,103380.0,0.55395353]
[1762876175241,0.31548212,103390.0,103380.0,0.55395353]
[1762876175437,0.02548212,103390.0,103380.0,0.55395353]
[1762876175837,0.00223212,103390.0,103380.0,0.55395353]
[1762876178541,0.12223212,103390.0,103380.0,0.55395353]
[1762876178840,0.00223212,103390.0,103380.0,0.55395353]
[1762876182638,0.00223212,103390.0,103380.0,0.84066905]
[1762876182839,0.00223212,103390.0,103380.0,0.74895595]
[1762876183040,2e-08,103390.0,103380.0,0.74895595]
[1762876183437,0.37364158,103430.0,103420.0,0.1426982]
[1762876183636,0.66364158,103430.0,103420.0,0.12205623]
[1762876183832,0.66364158,103430.0,103420.0,0.09890623]
[1762876184345,0.56693608,103430.0,103420.0,0.09890623]
[1762876184541,0.66363488,103430.0,103420.0,0.14489623]
[1762876184744,0.62718325,103430.0,103420.0,0.14989623]
[1762876185047,0.53048445,103430.0,103420.0,0.14989623]
[1762876185242,0.33548203,103430.0,103420.0,0.16291623]
[1762876185545,0.53048445,103430.0,103420.0,0.16291623]
[1762876185930,0.02448203,103430.0,103420.0,0.16291623]
[1762876186131,0.00123203,103430.0,103420.0,0.16291623]
[1762876186545,0.00123203,103430.0,103420.0,0.16691623]
[1762876187342,2.03e-06,103430.0,103420.0,0.36191865]
[1762876187845,0.53925445,103430.0,103420.0,0.54915623]
[1762876188050,0.53925242,103430.0,103420.0,0.54111623]
[1762876188543,0.04425,103430.0,103420.0,0.54111623]
[1762876188743,0.20798768,103440.0,103430.0,0.0966988]
[1762876188942,0.04439526,103440.0,103430.0,0.14488683]
[1762876189141,0.53939768,103440.0,103430.0,0.14488683]
[1762876189344,0.04439526,103440.0,103430.0,0.14488683]
[1762876189942,0.34439526,103440.0,103430.0,0.14488683]
[1762876190342,0.04439526,103440.0,103430.0,0.15288683]
[1762876190548,0.17439526,103440.0,103430.0,0.15288683]
[1762876191443,0.18439526,103440.0,103430.0,0.15288683]
[1762876191649,0.04439526,103440.0,103430.0,0.15288683]
[1762876191849,0.20439526,103440.0,103430.0,0.15288683]
[1762876192153,0.36439526,103440.0,103430.0,0.15288683]
[1762876193349,0.37748526,103440.0,103430.0,0.15288683]
[1762876193552,0.04439526,103440.0,103430.0,0.15288683]
[1762876193740,0.33439526,103440.0,103430.0,0.15288683]
[1762876194351,0.44417476,103440.0,103430.0,0.15288683]
[1762876194544,0.63917718,103440.0,103430.0,0.53424683]
[1762876194854,0.63917718,103440.0,103430.0,0.48821683]
[1762876195153,0.63917718,103440.0,103430.0,0.48813683]
[1762876195547,0.63917718,103440.0,103430.0,0.51070683]
[1762876195747,0.54248768,103440.0,103430.0,0.53241683]
[1762876196344,0.34748526,103440.0,103430.0,0.53241683]
[1762876196946,0.33439526,103440.0,103430.0,0.53241683]
[1762876197141,0.04439526,103440.0,103430.0,0.53241683]
[1762876197347,0.00014526,103440.0,103430.0,0.53241683]
[1762876197552,0.00014526,103440.0,103430.0,0.72741925]
[1762876198046,0.31014526,103440.0,103430.0,0.72741925]
[1762876198447,0.14014526,103440.0,103430.0,0.53241683]
[1762876199546,0.16254526,103440.0,103430.0,0.53241683]
[1762876199746,0.02254526,103440.0,103430.0,0.53241683]
[1762876199948,0.16254526,103440.0,103430.0,0.53241683]
[1762876200557,0.57241768,103440.0,103430.0,0.15117683]
[1762876200757,0.57241768,103440.0,103430.0,0.50998683]
[1762876200956,0.57241768,103440.0,103430.0,0.15251683]
[1762876201150,0.66910718,103440.0,103430.0,0.01019803]
[1762876201557,0.05727,103420.0,103410.0,0.12012896]
[1762876201851,0.55227242,103420.0,103410.0,0.00234329]
[1762876202154,0.55227242,103420.0,103410.0,0.09906079]
[1762876202354,0.4539782,103420.0,103410.0,0.14538079]
[1762876202749,0.64898062,103420.0,103410.0,0.14538079]
[1762876203052,0.56127242,103420.0,103410.0,0.14538079]
[1762876203248,0.05365,103420.0,103410.0,0.14538079]
[1762876203448,0.05365,103420.0,103410.0,0.52638079]
[1762876203650,0.39365,103420.0,103410.0,0.52638079]
[1762876204554,0.40627,103420.0,103410.0,0.52638079]
[1762876204755,0.05365,103420.0,103410.0,0.52638079]
[1762876205552,0.0314,103420.0,103410.0,0.52638079]
[1762876206353,0.05365,103420.0,103410.0,0.52638079]
[1762876206556,0.1114,103420.0,103410.0,0.52638079]
[1762876206747,0.0314,103420.0,103410.0,0.52638079]
[1762876206948,0.009,103420.0,103410.0,0.52638079]
[1762876207152,0.009,103420.0,103410.0,0.72138321]
[1762876207456,0.001,103420.0,103410.0,1.01514116]
[1762876207661,0.00014526,103440.0,103430.0,0.1430188]
[1762876207859,0.36479526,103440.0,103430.0,0.52585683]
[1762876208459,0.37741526,103440.0,103430.0,0.52585683]
[1762876209048,0.66910718,103440.0,103430.0,0.14521683]
[1762876209248,0.66910718,103440.0,103430.0,0.09889683]
[1762876209458,0.66910718,103440.0,103430.0,0.00219803]
[1762876209856,0.8641096,103440.0,103430.0,0.00219803]
[1762876210154,0.68941635,103440.0,103430.0,0.00219803]
[1762876210355,0.05727,103420.0,103410.0,0.52365556]
[1762876210555,0.58227242,103420.0,103410.0,0.52585359]
[1762876210758,0.00014526,103440.0,103430.0,0.04632]
[1762876210953,0.00014526,103440.0,103430.0,0.72061925]
[1762876211154,6e-08,103440.0,103430.0,1.0192972]
[1762876211463,0.04488194,103470.0,103460.0,0.1429908]
[1762876211662,0.04488194,103470.0,103460.0,1.65820883]
[1762876211861,0.02263194,103470.0,103460.0,1.85321125]
[1762876212163,0.02263194,103470.0,103460.0,0.15820883]
[1762876212461,0.00023194,103470.0,103460.0,0.35321125]
[1762876212660,0.00023194,103470.0,103460.0,1.85321125]
[1762876212963,0.04263194,103470.0,103460.0,1.65820883]
[1762876213160,0.04263194,103470.0,103460.0,1.66120883]
[1762876213360,0.02263194,103470.0,103460.0,1.66120883]
[1762876213556,0.02263194,103470.0,103460.0,1.67111471]
[1762876213754,0.33263194,103470.0,103460.0,1.66420883]
[1762876213957,0.33263194,103470.0,103460.0,1.65118883]
[1762876213958,0.54988436,103470.0,103460.0,1.65118883]
[1762876214157,0.54988436,103470.0,103460.0,0.38867803]
[1762876214358,0.05727,103460.0,103450.0,0.00014526]
[1762876214659,0.55257519,103460.0,103450.0,0.00014526]
[1762876216660,0.1093131,103440.0,103430.0,0.0966939]
[1762876216964,0.1093131,103440.0,103430.0,0.09889193]
[1762876216965,0.64896552,103440.0,103430.0,0.09889193]
[1762876217166,0.64896552,103440.0,103430.0,0.00219803]
[1762876217360,0.64896552,103440.0,103430.0,0.09889683]
[1762876218066,0.35727,103440.0,103430.0,0.14521683]
[1762876218468,0.55227242,103440.0,103430.0,0.14521683]
[1762876218763,0.64996192,103440.0,103430.0,0.14521683]
[1762876219064,0.4549595,103440.0,103430.0,0.00219803]
[1762876219264,0.64996192,103440.0,103430.0,0.00219803]
[1762876220273,0.04527,103430.0,103420.0,0.00014526]
[1762876220470,0.54027242,103430.0,103420.0,0.09905149]
[1762876220663,0.54027242,103430.0,103420.0,0.00234329]
[1762876220865,0.54027242,103430.0,103420.0,0.09905149]
[1762876222266,0.53881801,103430.0,103420.0,0.09905149]
[1762876222470,0.54381801,103430.0,103420.0,0.00234329]
[1762876222968,0.92370282,103430.0,103420.0,0.00014526]
[1762876223269,0.94399643,103430.0,103420.0,0.09905149]
[1762876223459,0.94799643,103430.0,103420.0,0.12027149]
[1762876223660,0.92770282,103430.0,103420.0,0.14175149]
[1762876223968,0.35281559,103430.0,103420.0,0.15555149]
[1762876224168,0.54782282,103430.0,103420.0,0.15555149]
[1762876224463,0.35281559,103430.0,103420.0,0.15555149]
[1762876224968,0.004,103430.0,103420.0,0.35055872]
[1762876225167,0.04478526,103450.0,103440.0,0.1531895]
[1762876225468,0.37478526,103450.0,103440.0,0.15538753]
[1762876225769,0.56979249,103450.0,103440.0,0.15538753]
[1762876226162,0.35191526,103450.0,103440.0,0.15538753]
[1762876226362,0.17014526,103450.0,103440.0,0.15538753]
[1762876226761,0.21578526,103450.0,103440.0,0.15538753]
[1762876227163,0.21478526,103450.0,103440.0,0.15538753]
[1762876228567,0.40979249,103450.0,103440.0,0.53494753]
[1762876228763,0.41279249,103450.0,103440.0,0.52114753]
[1762876228968,0.41279249,103450.0,103440.0,0.53494753]
[1762876229274,0.41279249,103450.0,103440.0,0.04489803]
[1762876229574,0.41479249,103450.0,103440.0,0.14158753]
[1762876229873,0.40979249,103450.0,103440.0,0.15738753]
[1762876230070,0.21478526,103450.0,103440.0,0.15738753]
[1762876230372,0.04478526,103450.0,103440.0,0.15738753]
[1762876230758,0.00014526,103450.0,103440.0,0.15738753]
[1762876230967,0.00014526,103450.0,103440.0,0.35239476]
[1762876231169,1.137e-05,103450.0,103440.0,0.35239476]
[1762876231468,1.137e-05,103450.0,103440.0,1.04610954]
[1762876231863,1.137e-05,103450.0,103440.0,2.54410954]
[1762876232069,0.00201137,103450.0,103440.0,2.54410954]
[1762876232567,1.37e-06,103450.0,103440.0,2.54410954]
[1762876232773,0.00023194,103470.0,103460.0,0.1531708]
[1762876233075,0.00023194,103470.0,103460.0,0.53484883]
[1762876233777,0.00023194,103470.0,103460.0,0.72985606]
[1762876233972,0.00023194,103470.0,103460.0,0.78182124]
[1762876234776,9.446e-05,103480.0,103470.0,0.1393615]
[1762876234969,9.446e-05,103480.0,103470.0,0.33656676]
[1762876235776,9.446e-05,103480.0,103470.0,0.38853194]
[1762876236569,4.46e-06,103480.0,103470.0,0.39253194]
[1762876236767,4.46e-06,103480.0,103470.0,0.39553194]
[1762876236979,4.46e-06,103480.0,103470.0,0.63313194]
[1762876237164,0.04487185,103510.0,103500.0,0.1531335]
[1762876237364,0.04487185,103510.0,103500.0,0.15533153]
[1762876238271,0.00023185,103510.0,103500.0,0.15533153]
[1762876238477,0.00023185,103510.0,103500.0,0.35033876]
[1762876238973,0.00023185,103510.0,103500.0,0.35433876]
[1762876239572,0.00023185,103510.0,103500.0,0.35733876]
[1762876239768,1.85e-06,103510.0,103500.0,0.59885876]
[1762876239964,1.85e-06,103510.0,103500.0,0.65082394]
[1762876240173,1.85e-06,103510.0,103500.0,0.99285876]
[1762876240671,1.85e-06,103510.0,103500.0,0.35133876]
[1762876240870,1.85e-06,103510.0,103500.0,0.53569153]
[1762876241071,1.85e-06,103510.0,103500.0,0.15633153]
[1762876241472,1.85e-06,103510.0,103500.0,0.53569153]
[1762876241672,1.85e-06,103510.0,103500.0,0.15633153]
[1762876241869,0.04464185,103510.0,103500.0,0.53565153]
[1762876242180,0.34464185,103510.0,103500.0,0.14253153]
[1762876242374,0.53964908,103510.0,103500.0,0.15633153]
[1762876242570,1.85e-06,103510.0,103500.0,0.53565153]
[1762876243582,0.63627318,103510.0,103500.0,0.14253153]
[1762876243874,0.63627318,103510.0,103500.0,0.52197153]
[1762876244270,0.34464185,103510.0,103500.0,0.53577153]
[1762876244579,0.16177185,103510.0,103500.0,0.53565153]
[1762876245073,0.28000185,103510.0,103500.0,0.53565153]
[1762876245271,1.85e-06,103510.0,103500.0,0.53565153]
[1762876245975,0.13000185,103510.0,103500.0,0.53565153]
[1762876246180,0.15177185,103510.0,103500.0,0.53565153]
[1762876246375,0.32464185,103510.0,103500.0,0.53565153]
[1762876246577,0.42126595,103510.0,103500.0,0.53565153]
[1762876246780,0.32464185,103510.0,103500.0,0.53561153]
[1762876247471,0.13000185,103510.0,103500.0,0.53561153]
[1762876247677,1.85e-06,103510.0,103500.0,0.49291153]
[1762876248079,0.14000185,103510.0,103500.0,0.49291153]
[1762876248384,1.85e-06,103510.0,103500.0,0.53561153]
[1762876248982,1.85e-06,103510.0,103500.0,0.49291153]
[1762876249368,1.85e-06,103510.0,103500.0,0.7783452]
[1762876249780,1.85e-06,103510.0,103500.0,0.49291153]
[1762876250869,1.85e-06,103510.0,103500.0,0.7783452]
[1762876251474,1.85e-06,103510.0,103500.0,0.11363153]
[1762876251679,0.15244185,103510.0,103500.0,0.53706153]
[1762876251980,0.31244185,103510.0,103500.0,0.53706153]
[1762876252185,0.04460185,103510.0,103500.0,0.53706153]
[1762876252480,1.85e-06,103510.0,103500.0,0.49287153]
[1762876252680,0.12000185,103510.0,103500.0,0.49287153]
[1762876252880,0.41906595,103510.0,103500.0,0.53706153]
[1762876253081,0.44122595,103510.0,103500.0,0.53706153]
[1762876253878,0.72665962,103510.0,103500.0,0.53702153]
[1762876254388,0.34460185,103510.0,103500.0,0.53702153]
[1762876255382,0.63003552,103510.0,103500.0,0.47903153]
[1762876255583,0.63003552,103510.0,103500.0,0.09983153]
[1762876255886,0.72665962,103510.0,103500.0,0.15772153]
[1762876256075,0.72665962,103510.0,103500.0,0.14402153]
[1762876256278,0.42665962,103510.0,103500.0,0.12232153]
[1762876256477,0.42665962,103510.0,103500.0,0.00319803]
[1762876256773,0.42665962,103510.0,103500.0,0.12232153]
[1762876256971,0.42665962,103510.0,103500.0,0.09983153]
[1762876257782,0.42665962,103510.0,103500.0,0.12232153]
[1762876258385,0.42665962,103510.0,103500.0,0.14504153]
[1762876258576,0.33003552,103510.0,103500.0,0.15787153]
[1762876258771,0.04460185,103510.0,103500.0,0.16287153]
[1762876258980,1.85e-06,103510.0,103500.0,0.4030952]
[1762876259180,1.85e-06,103510.0,103500.0,0.11766153]
[1762876259784,1.85e-06,103510.0,103500.0,0.12066153]
[1762876260481,1.85e-06,103510.0,103500.0,0.49682153]
[1762876260781,0.04415185,103510.0,103500.0,0.16259153]
[1762876260987,0.04415185,103510.0,103500.0,0.54175153]
[1762876261286,0.04415185,103510.0,103500.0,0.14976153]
[1762876261999,0.04415185,103510.0,103500.0,0.10483153]
[1762876262287,0.32958552,103510.0,103500.0,0.09983153]
[1762876262682,0.34974239,103510.0,103500.0,0.09983153]
[1762876262883,0.34974239,103510.0,103500.0,0.00319803]
[1762876263484,0.34974239,103510.0,103500.0,0.001]
[1762876263681,0.72890239,103510.0,103500.0,0.001]
[1762876263877,0.06430872,103510.0,103500.0,0.16059153]
[1762876264287,0.34974239,103510.0,103500.0,0.00619803]
[1762876264490,0.06430872,103510.0,103500.0,0.10283153]
[1762876264690,0.06430872,103510.0,103500.0,0.10583153]
[1762876264691,0.34974239,103510.0,103500.0,0.10583153]
[1762876264992,0.34974239,103510.0,103500.0,0.00919803]
[1762876265197,0.34974239,103510.0,103500.0,0.10583153]
[1762876266386,0.34974239,103510.0,103500.0,0.14676153]
[1762876266591,0.34974239,103510.0,103500.0,0.15076153]
[1762876267392,0.34968917,103510.0,103500.0,0.15076153]
[1762876268394,0.0642555,103510.0,103500.0,0.16359153]
[1762876268895,0.34968917,103510.0,103500.0,0.00919803]
[1762876269087,0.72880917,103510.0,103500.0,0.007]
[1762876269697,0.05095,103500.0,103490.0,0.00014526]
[1762876269997,0.35648732,103500.0,103490.0,0.00014526]
[1762876270293,0.1408115,103470.0,103460.0,0.20735938]
[1762876270486,0.1408115,103470.0,103460.0,0.06092803]
[1762876270692,0.1408115,103470.0,103460.0,0.12107883]
[1762876270892,0.42624517,103470.0,103460.0,0.00219803]
[1762876271093,0.42624517,103470.0,103460.0,0.09886883]
[1762876271686,0.80536517,103470.0,103460.0,0.09886883]
[1762876271986,0.32958367,103470.0,103460.0,0.15662883]
[1762876272187,0.02008405,103470.0,103460.0,0.15662883]
[1762876272391,0.42341526,103480.0,103470.0,0.1415915]
[1762876272589,0.06436772,103480.0,103470.0,0.14378953]
[1762876272790,0.04429526,103480.0,103470.0,0.14378953]
[1762876273604,0.32972893,103480.0,103470.0,0.14378953]
[1762876273795,0.04429526,103480.0,103470.0,0.14378953]
[1762876274093,0.04529526,103480.0,103470.0,0.14378953]
[1762876274696,0.33072893,103480.0,103470.0,0.14378953]
[1762876274902,0.04529526,103480.0,103470.0,0.14378953]